bitfinex/quotes_SOLUSD_20220227
["timestamp","ask_amount","ask_price","bid_price","bid_amount"]
[1645998484252,117.6,85.426,85.347,6.0]
[1645998484456,2.74678921,85.426,85.347,6.0]
[1645998484653,2.74678921,85.425,85.347,6.0]
[1645998487155,2.74678921,85.438,85.347,10.684]
[1645998487355,6.0,85.437,85.347,10.684]
[1645998487555,117.6,85.436,85.347,10.684]
[1645998487755,117.6,85.434,85.347,6.0]
[1645998487956,117.6,85.432,85.347,6.0]
[1645998488158,6.0,85.433,85.347,6.0]
[1645998488356,2.74678921,85.433,85.347,6.0]
[1645998488557,6.0,85.432,85.347,6.0]
[1645998488755,8.74678921,85.432,85.347,6.0]
[1645998488956,2.74678921,85.431,85.347,6.0]
[1645998489156,120.34678921,85.431,85.347,6.0]
[1645998489357,123.6,85.43,85.347,6.0]
[1645998489559,126.34678921,85.43,85.347,6.0]
[1645998489757,2.74678921,85.429,85.348,4.684]
[1645998489956,117.6,85.427,85.349,6.0]
[1645998490358,2.74678921,85.426,85.347,6.0]
[1645998494261,117.6,85.419,85.347,6.0]
[1645998494461,117.6,85.417,85.336,7.72436886]
[1645998494665,117.6,85.415,85.314,2.71409464]
[1645998494862,117.6,85.413,85.314,2.71409464]
[1645998495063,117.6,85.399,85.314,2.71409464]
[1645998495263,117.6,85.397,85.314,2.71409464]
[1645998495464,117.6,85.395,85.315,30.41503833]
[1645998495664,117.6,85.379,85.316,2.40063672]
[1645998495863,13.77,85.38,85.316,2.40063672]
[1645998495864,117.6,85.377,85.316,2.40063672]
[1645998496064,117.6,85.375,85.283,3.09185856]
[1645998496267,117.6,85.375,85.283,9.09185856]
[1645998496464,10.687,85.374,85.283,9.09185856]
[1645998496664,13.77,85.37,85.283,9.09185856]
[1645998496866,13.77,85.37,85.284,35.92583916]
[1645998497065,13.77,85.37,85.285,8.70944941]
[1645998497267,8.74678921,85.369,85.285,8.70944941]
[1645998497666,2.74678921,85.368,85.285,8.70944941]
[1645998498866,117.6,85.366,85.285,2.70944941]
[1645998499067,117.6,85.364,85.285,2.70944941]
[1645998499268,117.6,85.362,85.285,2.70944941]
[1645998499468,131.37,85.36,85.285,2.70944941]
[1645998499771,117.6,85.358,85.285,2.70944941]
[1645998499975,6.0,85.357,85.285,2.70944941]
[1645998500171,8.74678921,85.357,85.285,2.70944941]
[1645998500571,120.34678921,85.356,85.285,2.70944941]
[1645998500974,117.6,85.354,85.285,2.70944941]
[1645998501172,117.6,85.352,85.285,2.70944941]
[1645998501372,117.6,85.35,85.285,2.70944941]
[1645998501572,2.74678921,85.351,85.285,2.70944941]
[1645998501972,2.74678921,85.349,85.285,2.70944941]
[1645998502374,120.34678921,85.349,85.285,2.70944941]
[1645998502772,2.74678921,85.348,85.285,2.70944941]
[1645998502972,117.6,85.346,85.285,2.70944941]
[1645998503176,117.6,85.344,85.285,2.70944941]
[1645998503383,117.6,85.342,85.285,2.70944941]
[1645998503797,117.6,85.339,85.285,2.70944941]
[1645998503998,117.6,85.337,85.243,2.61885138]
[1645998504198,117.6,85.337,85.243,8.61885138]
[1645998504398,6.0,85.336,85.243,8.61885138]
[1645998504797,23.2337,85.335,85.244,26.53334402]
[1645998505007,6.0,85.334,85.245,8.8426135]
[1645998506000,23.2337,85.335,85.246,144.33454092]
[1645998506299,17.5924,85.37,85.246,144.33454092]
[1645998506300,13.77,85.36,85.249,2.45289059]
[1645998506501,13.77,85.36,85.252,2.76611184]
[1645998506899,13.77,85.36,85.255,2.43111566]
[1645998507099,13.77,85.36,85.257,117.6]
[1645998507301,13.77,85.36,85.26,2.54218239]
[1645998507505,2.74678921,85.359,85.263,3.11415072]
[1645998507701,2.74678921,85.359,85.265,117.6]
[1645998507902,6.0,85.358,85.268,2.66538534]
[1645998508102,6.0,85.359,85.271,34.32224725]
[1645998508302,6.0,85.359,85.272,8.57974104]
[1645998508504,6.0,85.368,85.273,2.88356005]
[1645998508702,6.0,85.368,85.275,117.6]
[1645998508902,6.0,85.368,85.276,8.40141415]
[1645998509107,2.74678921,85.367,85.276,8.40141415]
[1645998509304,6.0,85.366,85.276,8.40141415]
[1645998509804,120.34678921,85.365,85.276,8.40141415]
[1645998510006,117.6,85.363,85.276,8.40141415]
[1645998510204,10.688,85.364,85.276,8.40141415]
[1645998510205,117.6,85.361,85.276,8.40141415]
[1645998510407,117.6,85.359,85.276,8.40141415]
[1645998510605,6.0,85.358,85.276,8.40141415]
[1645998510805,117.6,85.357,85.276,8.40141415]
[1645998511006,117.6,85.355,85.276,2.40141415]
[1645998511205,117.6,85.353,85.276,2.40141415]
[1645998511406,117.6,85.351,85.276,2.40141415]
[1645998511606,117.6,85.349,85.276,2.40141415]
[1645998511809,117.6,85.347,85.276,2.40141415]
[1645998512005,117.6,85.345,85.276,2.40141415]
[1645998512307,117.6,85.343,85.276,2.40141415]
[1645998512705,117.6,85.341,85.276,2.40141415]
[1645998512905,117.6,85.339,85.276,2.40141415]
[1645998513105,6.0,85.338,85.276,2.40141415]
[1645998513707,2.74678921,85.337,85.276,2.40141415]
[1645998513906,6.0,85.336,85.276,2.40141415]
[1645998514307,2.74678921,85.335,85.276,2.40141415]
[1645998514506,6.0,85.334,85.276,2.40141415]
[1645998514707,117.6,85.333,85.276,2.40141415]
[1645998514908,117.6,85.329,85.276,2.40141415]
[1645998515111,117.6,85.329,85.243,24.7288]
[1645998515112,117.6,85.329,85.246,24.2059]
[1645998515308,117.6,85.327,85.247,8.91254981]
[1645998515510,6.0,85.326,85.247,8.91254981]
[1645998515909,8.74678921,85.326,85.248,35.58225269]
[1645998516213,2.74678921,85.325,85.249,2.53311999]
[1645998516408,6.0,85.324,85.249,2.53311999]
[1645998516612,13.77,85.32,85.249,2.53311999]
[1645998516813,6.0,85.319,85.249,2.53311999]
[1645998517210,123.6,85.319,85.249,2.53311999]
[1645998517611,6.0,85.319,85.249,2.53311999]
[1645998518009,123.6,85.319,85.249,2.53311999]
[1645998519812,6.0,85.319,85.249,2.53311999]
[1645998520411,2.74678921,85.318,85.249,2.53311999]
[1645998520613,6.0,85.317,85.249,2.53311999]
[1645998521013,6.0,85.317,85.25,6.0]
[1645998521215,2.74678921,85.336,85.25,6.0]
[1645998521417,6.0,85.333,85.25,6.0]
[1645998521913,6.0,85.333,85.25,10.689]
[1645998522113,6.0,85.333,85.25,6.0]
[1645998522718,6.0,85.333,85.251,117.6]
[1645998523015,6.0,85.333,85.254,2.47669228]
[1645998523216,6.0,85.333,85.255,10.689]
[1645998523714,6.0,85.333,85.255,6.0]
[1645998523915,6.0,85.333,85.256,24.068]
[1645998524117,6.0,85.333,85.257,8.94994356]
[1645998525117,6.0,85.338,85.257,8.94994356]
[1645998525319,6.0,85.338,85.258,117.6]
[1645998525516,6.0,85.338,85.259,9.09019171]
[1645998525718,6.0,85.338,85.259,3.09019171]
[1645998525919,27.8159656,85.338,85.26,6.0]
[1645998530128,27.8159656,85.338,85.259,3.09019171]
[1645998530729,27.8159656,85.338,85.26,6.0]
[1645998531329,2.74678921,85.337,85.26,6.0]
[1645998531529,117.6,85.335,85.26,6.0]
[1645998531729,117.6,85.333,85.26,6.0]
[1645998532033,117.6,85.331,85.259,3.09019171]
[1645998532230,123.6,85.33,85.259,3.09019171]
[1645998532431,6.0,85.329,85.259,3.09019171]
[1645998538262,6.0,85.329,85.259,3.06673559]
[1645998539361,139.4159656,85.328,85.259,3.06673559]
[1645998539563,117.6,85.326,85.259,3.06673559]
[1645998539762,117.6,85.324,85.259,3.06673559]
[1645998539962,13.77,85.31,85.242,6.9503245]
[1645998540162,6.0,85.309,85.242,6.9503245]
[1645998540562,6.0,85.309,85.243,35.4976045]
[1645998540764,6.0,85.309,85.244,2.85132711]
[1645998541162,120.34678921,85.308,85.244,2.85132711]
[1645998541369,6.0,85.307,85.244,2.85132711]
[1645998541964,6.0,85.309,85.245,26.84968755]
[1645998542162,6.0,85.309,85.246,2.97054352]
[1645998542363,13.77,85.31,85.246,2.97054352]
[1645998542565,13.77,85.31,85.246,27.95184352]
[1645998542763,13.77,85.31,85.247,2.45987862]
[1645998543165,13.77,85.31,85.248,6.0]
[1645998543564,13.77,85.31,85.247,2.45987862]
[1645998544765,13.77,85.31,85.248,6.0]
[1645998544965,13.77,85.31,85.247,2.45987862]
[1645998545365,13.77,85.31,85.248,6.0]
[1645998545571,155.98443227,85.31,85.247,2.45987862]
[1645998546168,6.0,85.309,85.247,2.45987862]
[1645998546969,30.61443227,85.309,85.247,2.45987862]
[1645998547169,117.6,85.308,85.247,2.45987862]
[1645998547369,117.6,85.306,85.247,2.45987862]
[1645998547569,117.6,85.304,85.247,2.45987862]
[1645998547770,117.6,85.302,85.247,2.45987862]
[1645998548070,117.6,85.299,85.242,4.689]
[1645998548271,117.6,85.299,85.205,2.44451088]
[1645998548473,117.6,85.297,85.206,23.9811]
[1645998548671,117.6,85.295,85.207,2.57768529]
[1645998548874,117.6,85.293,85.205,33.57564734]
[1645998549071,117.6,85.279,85.206,2.82496882]
[1645998549273,10.692,85.278,85.206,2.82496882]
[1645998549472,117.6,85.277,85.206,2.82496882]
[1645998549671,117.6,85.275,85.189,3.08708851]
[1645998549870,6.0,85.274,85.19,6.0]
[1645998550169,22.83064254,85.274,85.19,6.0]
[1645998550371,13.77,85.27,85.19,6.0]
[1645998550570,6.0,85.269,85.192,3.02884136]
[1645998551073,120.34678921,85.268,85.192,3.02884136]
[1645998551272,117.6,85.266,85.192,3.02884136]
[1645998551471,117.6,85.264,85.192,3.02884136]
[1645998551674,117.6,85.259,85.192,3.02884136]
[1645998551872,13.77,85.26,85.133,117.6]
[1645998551873,117.6,85.257,85.142,2.82645112]
[1645998552071,10.692,85.258,85.176,30.00623763]
[1645998552072,117.6,85.255,85.176,30.00623763]
[1645998552271,13.77,85.24,85.177,2.55979295]
[1645998552475,6.0,85.239,85.177,2.55979295]
[1645998553371,13.77,85.24,85.177,2.55979295]
[1645998553775,13.77,85.24,85.179,2.70573102]
[1645998553974,117.6,85.239,85.179,2.70573102]
[1645998554277,142.17256198,85.239,85.179,2.70573102]
[1645998554475,117.6,85.237,85.179,2.70573102]
[1645998554676,6.0,85.236,85.143,25.98108895]
[1645998554880,30.57256198,85.236,85.144,3.05825986]
[1645998555277,0.04187029,85.235,85.145,56.38116695]
[1645998555478,22.78517029,85.235,85.146,8.91802291]
[1645998555680,6.0,85.234,85.146,35.14718068]
[1645998555890,6.0,85.234,85.147,2.86162614]
[1645998556081,6.0,85.234,85.149,117.6]
[1645998556280,13.77,85.25,85.152,2.88972308]
[1645998556480,6.0,85.249,85.154,2.66160214]
[1645998556680,6.0,85.249,85.155,6.0]
[1645998556882,24.57256198,85.248,85.155,6.0]
[1645998557089,6.0,85.247,85.155,8.74678921]
[1645998557286,6.0,85.247,85.155,6.0]
[1645998557486,8.74678921,85.247,85.156,2.74678921]
[1645998557686,8.74678921,85.247,85.157,6.0]
[1645998558291,117.6,85.246,85.157,6.0]
[1645998558489,117.6,85.244,85.155,6.0]
[1645998558695,13.77,85.24,85.155,6.0]
[1645998558890,6.0,85.239,85.155,6.0]
[1645998559294,6.0,85.239,85.156,2.74678921]
[1645998559490,6.0,85.239,85.157,6.0]
[1645998559890,6.0,85.239,85.155,6.0]
[1645998561495,117.6,85.238,85.155,6.0]
[1645998561694,117.6,85.236,85.154,2.66160214]
[1645998561893,117.6,85.234,85.093,2.41104184]
[1645998562095,117.6,85.219,85.095,2.4121926]
[1645998562293,4.697,85.218,85.095,2.4121926]
[1645998562494,117.6,85.216,85.095,120.0121926]
[1645998562694,117.6,85.214,85.098,32.99612222]
[1645998562893,13.77,85.2,85.1,2.41015261]
[1645998563093,29.7433,85.199,85.1,2.41015261]
[1645998563293,122.297,85.198,85.1,2.41015261]
[1645998563496,117.6,85.196,85.1,2.41015261]
[1645998563693,117.6,85.194,85.1,2.41015261]
[1645998563896,13.77,85.19,85.1,2.41015261]
[1645998564095,6.0,85.189,85.1,2.41015261]
[1645998564695,6.0,85.189,85.101,6.0]
[1645998565495,24.57256198,85.188,85.1,2.41015261]
[1645998565696,117.6,85.186,85.1,2.41015261]
[1645998565894,117.6,85.184,85.1,2.41015261]
[1645998566095,13.77,85.18,85.1,2.41015261]
[1645998566295,6.0,85.179,85.1,2.41015261]
[1645998566694,26.49008921,85.199,85.1,2.41015261]
[1645998566894,6.0,85.198,85.102,117.6]
[1645998567095,6.0,85.198,85.103,8.74269016]
[1645998567295,6.0,85.198,85.103,2.74269016]
[1645998567597,2.74678921,85.197,85.104,28.9037]
[1645998567796,6.0,85.196,85.105,2.95181006]
[1645998567996,6.0,85.196,85.107,117.6]
[1645998568200,6.0,85.196,85.11,2.82713331]
[1645998568398,6.0,85.207,85.112,117.6]
[1645998568598,6.0,85.207,85.114,117.6]
[1645998568798,6.0,85.212,85.116,117.6]
[1645998568999,6.0,85.212,85.118,117.6]
[1645998569197,2.74678921,85.219,85.12,117.6]
[1645998569397,53.34497894,85.228,85.117,22.8961]
[1645998569398,24.61477894,85.228,85.122,117.6]
[1645998569598,2.74678921,85.229,85.124,117.6]
[1645998569797,24.57221531,85.242,85.126,117.6]
[1645998569998,6.0,85.241,85.131,117.6]
[1645998570198,123.6,85.241,85.133,117.6]
[1645998570398,117.6,85.239,85.134,8.49182404]
[1645998570598,6.0,85.238,85.135,28.5949]
[1645998570797,42.01200179,85.238,85.136,8.73876542]
[1645998570998,36.05456542,85.237,85.136,8.73876542]
[1645998571202,6.0,85.236,85.136,8.73876542]
[1645998571401,42.01200179,85.236,85.138,2.76359702]
[1645998571602,33.51631464,85.236,85.142,2.76934408]
[1645998571801,8.74678921,85.236,85.145,2.32448122]
[1645998572000,6.0,85.236,85.148,2.97499911]
[1645998572199,22.6507476,85.259,85.152,117.6]
[1645998572402,2.74678921,85.267,85.155,3.06105405]
[1645998572603,22.6507476,85.272,85.161,117.6]
[1645998572802,22.6507476,85.272,85.164,2.55527022]
[1645998573101,22.6507476,85.272,85.166,117.6]
[1645998573302,22.6507476,85.271,85.168,117.6]
[1645998573500,22.6507476,85.271,85.17,117.6]
[1645998573700,22.6507476,85.271,85.172,117.6]
[1645998573900,22.6507476,85.271,85.174,117.6]
[1645998574104,22.6507476,85.271,85.176,117.6]
[1645998574300,22.6507476,85.271,85.178,117.6]
[1645998574501,22.6507476,85.271,85.18,117.6]
[1645998574701,22.6507476,85.271,85.182,117.6]
[1645998574901,22.6507476,85.271,85.183,2.62977281]
[1645998575108,117.6,85.269,85.184,30.6111]
[1645998575304,117.6,85.267,85.185,2.36592368]
[1645998575504,6.0,85.266,85.186,6.0]
[1645998575708,28.6507476,85.266,85.188,2.56424654]
[1645998575907,51.44427303,85.266,85.189,6.0]
[1645998576105,45.44427303,85.265,85.189,6.0]
[1645998576306,6.0,85.264,85.189,6.0]
[1645998576507,13.77,85.26,85.189,6.0]
[1645998577108,22.6507476,85.263,85.189,6.0]
[1645998577309,6.0,85.262,85.189,6.0]
[1645998577707,13.77,85.28,85.189,6.0]
[1645998577908,6.0,85.278,85.189,6.0]
[1645998578108,28.6507476,85.278,85.19,117.6]
[1645998578308,28.6507476,85.278,85.189,6.0]
[1645998578309,28.6507476,85.278,85.192,117.6]
[1645998578509,22.6507476,85.277,85.193,126.20894981]
[1645998578726,6.0,85.276,85.194,3.05532886]
[1645998578908,6.0,85.276,85.195,6.0]
[1645998579109,22.6507476,85.275,85.195,6.0]
[1645998579510,6.0,85.274,85.195,6.0]
[1645998579910,22.6507476,85.273,85.192,2.99968772]
[1645998580110,22.6507476,85.273,85.194,2.95205588]
[1645998580311,22.6507476,85.273,85.195,6.0]
[1645998581114,22.6507476,85.273,85.196,117.6]
[1645998581313,15.17053904,85.288,85.198,117.6]
[1645998581513,15.17053904,85.288,85.195,6.0]
[1645998581514,15.17053904,85.288,85.2,117.6]
[1645998581712,22.32956094,85.302,85.201,2.70037034]
[1645998581914,22.79352543,85.323,85.203,117.6]
[1645998582112,22.32956094,85.321,85.205,117.6]
[1645998582312,22.32956094,85.321,85.207,117.6]
[1645998582515,6.0,85.32,85.211,117.6]
[1645998582713,6.0,85.32,85.214,2.62024498]
[1645998582913,22.32956094,85.319,85.217,2.93029732]
[1645998583115,22.32956094,85.319,85.22,2.3893194]
[1645998583312,22.32956094,85.319,85.223,2.35307634]
[1645998583513,22.32956094,85.319,85.226,2.73407141]
[1645998583714,22.32956094,85.319,85.229,3.08807524]
[1645998583915,22.32956094,85.319,85.227,10.69]
[1645998583916,22.32956094,85.319,85.233,117.6]
[1645998584112,22.32956094,85.319,85.234,13.24807356]
[1645998584516,6.0,85.32,85.235,117.6]
[1645998584814,6.0,85.328,85.237,117.6]
[1645998585013,6.0,85.328,85.239,117.6]
[1645998585216,6.0,85.328,85.241,117.6]
[1645998585419,6.0,85.328,85.243,117.6]
[1645998585616,6.0,85.328,85.244,37.95548596]
[1645998585917,117.6,85.326,85.245,8.68692115]
[1645998586117,117.6,85.324,85.245,2.68692115]
[1645998586315,117.6,85.324,85.244,24.2486]
[1645998586316,6.0,85.323,85.247,2.40253486]
[1645998586517,22.32956094,85.323,85.247,2.40253486]
[1645998586716,6.0,85.322,85.247,2.40253486]
[1645998586917,51.12308637,85.322,85.247,2.40253486]
[1645998587118,22.32956094,85.321,85.247,2.40253486]
[1645998587316,6.0,85.32,85.247,2.40253486]
[1645998587722,22.32956094,85.319,85.247,2.40253486]
[1645998587923,6.0,85.318,85.248,6.0]
[1645998588122,117.6,85.317,85.247,2.40253486]
[1645998588320,230.2,85.311,85.221,3.10099602]
[1645998588522,19.77,85.31,85.222,6.0]
[1645998588720,122.291,85.309,85.222,6.0]
[1645998588922,117.6,85.307,85.221,3.10099602]
[1645998589121,117.6,85.305,85.222,29.9156516]
[1645998589322,117.1,85.303,85.223,2.33172016]
[1645998589523,13.77,85.29,85.223,2.33172016]
[1645998590122,6.0,85.289,85.223,2.33172016]
[1645998591526,37.48283959,85.302,85.223,2.33172016]
[1645998591722,6.0,85.301,85.224,6.0]
[1645998591923,4.691,85.3,85.224,6.0]
[1645998592122,117.6,85.298,85.224,6.0]
[1645998592324,117.6,85.296,85.223,2.33172016]
[1645998592524,117.6,85.294,85.223,2.33172016]
[1645998592723,13.77,85.29,85.223,2.33172016]
[1645998592923,6.0,85.289,85.223,2.33172016]
[1645998595423,13.77,85.29,85.223,2.33172016]
[1645998596427,6.0,85.289,85.223,2.33172016]
[1645998597024,6.0,85.289,85.224,6.0]
[1645998597426,13.77,85.29,85.224,6.0]
[1645998597928,42.3821,85.31,85.224,6.0]
[1645998598128,38.5472,85.31,85.224,6.0]
[1645998598627,38.5472,85.31,85.224,8.62210126]
[1645998599329,38.5472,85.31,85.225,117.6]
[1645998599530,38.5472,85.31,85.228,2.31531309]
[1645998599731,38.5472,85.31,85.231,2.53909619]
[1645998599930,24.7772,85.31,85.234,2.91358706]
[1645998600132,24.7772,85.31,85.235,6.0]
[1645998600332,24.7772,85.31,85.237,3.07362436]
[1645998600532,24.7772,85.31,85.238,6.0]
[1645998600931,22.32956094,85.321,85.24,2.40780055]
[1645998601131,22.32956094,85.333,85.243,2.43667286]
[1645998601355,22.32956094,85.333,85.245,117.6]
[1645998601557,22.32956094,85.333,85.249,117.6]
[1645998601754,6.0,85.332,85.252,2.40294048]
[1645998601953,6.0,85.332,85.254,2.45331036]
[1645998602154,6.0,85.332,85.255,6.0]
[1645998602754,6.0,85.332,85.256,23.2717]
[1645998602957,6.0,85.332,85.257,8.94947351]
[1645998603964,12.86053547,85.331,85.257,8.94947351]
[1645998604157,6.0,85.33,85.257,8.94947351]
[1645998606158,117.6,85.328,85.257,2.94947351]
[1645998606359,10.689,85.327,85.257,2.94947351]
[1645998606558,117.6,85.326,85.257,2.94947351]
[1645998606759,35.66739807,85.327,85.257,2.94947351]
[1645998606961,12.86053547,85.325,85.257,2.94947351]
[1645998607162,6.0,85.324,85.257,2.94947351]
[1645998607361,13.77,85.32,85.257,2.94947351]
[1645998607562,6.0,85.319,85.257,2.94947351]
[1645998608462,8.74678921,85.319,85.257,2.94947351]
[1645998608667,117.6,85.318,85.257,2.94947351]
[1645998608862,6.0,85.317,85.257,2.94947351]
[1645998609063,8.74678921,85.317,85.257,2.94947351]
[1645998609263,15.12527331,85.317,85.257,2.94947351]
[1645998609464,120.34678921,85.316,85.257,2.94947351]
[1645998609664,117.6,85.314,85.257,2.94947351]
[1645998609864,6.0,85.313,85.257,2.94947351]
[1645998610466,6.0,85.314,85.257,2.94947351]
[1645998611366,6.0,85.313,85.257,2.94947351]
[1645998611568,6.3784841,85.317,85.257,2.94947351]
[1645998611966,117.6,85.316,85.249,24.7994]
[1645998612166,117.6,85.314,85.217,26.675884]
[1645998612366,131.37,85.3,85.218,2.91366382]
[1645998612566,6.0,85.299,85.218,2.91366382]
[1645998612967,6.0,85.299,85.219,26.58600546]
[1645998612968,21.3812952,85.298,85.219,26.58600546]
[1645998613170,6.0,85.297,85.22,2.35375751]
[1645998613367,8.74678921,85.297,85.22,2.35375751]
[1645998613570,2.74678921,85.296,85.22,2.35375751]
[1645998613767,6.0,85.295,85.221,6.0]
[1645998614169,8.74678921,85.295,85.221,6.0]
[1645998614370,117.6,85.294,85.221,6.0]
[1645998614569,13.77,85.29,85.22,2.35375751]
[1645998614768,6.0,85.289,85.22,2.35375751]
[1645998618273,6.0,85.289,85.221,6.0]
[1645998618873,20.63749065,85.289,85.22,2.35375751]
[1645998619273,6.0,85.289,85.22,2.35375751]
[1645998620875,8.74678921,85.289,85.22,2.35375751]
[1645998621075,8.74678921,85.289,85.22,119.95375751]
[1645998621076,2.74678921,85.289,85.22,119.95375751]
[1645998621276,13.77,85.32,85.222,117.6]
[1645998621474,23.1398,85.336,85.225,2.39741714]
[1645998621674,23.1398,85.336,85.227,117.6]
[1645998621873,23.1398,85.336,85.23,2.36795151]
[1645998622074,112.6,85.334,85.232,117.6]
[1645998622373,112.6,85.334,85.235,3.11261284]
[1645998622573,112.6,85.334,85.238,3.03256388]
[1645998622775,112.6,85.334,85.241,2.49250614]
[1645998622975,112.6,85.334,85.244,2.77124109]
[1645998623175,112.6,85.334,85.248,117.6]
[1645998623375,112.6,85.334,85.251,2.73019029]
[1645998623574,112.6,85.334,85.249,6.0]
[1645998623575,112.6,85.334,85.253,2.51485568]
[1645998623778,112.6,85.334,85.254,6.0]
[1645998624873,112.6,85.334,85.254,8.53329596]
[1645998625675,117.6,85.333,85.254,8.53329596]
[1645998625876,112.6,85.334,85.254,8.53329596]
[1645998629179,117.6,85.333,85.254,8.53329596]
[1645998630679,112.6,85.334,85.254,8.53329596]
[1645998631683,13.2842143,85.333,85.254,8.53329596]
[1645998631880,117.6,85.332,85.254,8.53329596]
[1645998632980,117.6,85.33,85.254,8.53329596]
[1645998633582,112.6,85.334,85.254,8.53329596]
[1645998635781,123.48163038,85.334,85.254,8.53329596]
[1645998635981,8.97969075,85.333,85.254,8.53329596]
[1645998636482,117.6,85.332,85.254,8.53329596]
[1645998637083,117.6,85.33,85.254,8.53329596]
[1645998637484,128.48163038,85.33,85.254,8.53329596]
[1645998637685,117.6,85.328,85.254,8.53329596]
[1645998637885,117.6,85.328,85.254,2.53329596]
[1645998638084,117.6,85.326,85.254,2.53329596]
[1645998638486,19.86132113,85.327,85.254,2.53329596]
[1645998638487,117.6,85.324,85.254,2.53329596]
[1645998638889,117.6,85.322,85.255,6.0]
[1645998639286,10.88163038,85.323,85.255,6.0]
[1645998639485,137.73105122,85.33,85.255,6.0]
[1645998639687,25.86132113,85.329,85.255,6.0]
[1645998640087,25.86132113,85.329,85.254,2.53329596]
[1645998640286,10.88163038,85.328,85.254,2.53329596]
[1645998640486,6.0,85.327,85.255,6.0]
[1645998640687,6.0,85.329,85.255,6.0]
[1645998640885,112.6,85.334,85.255,6.0]
[1645998643389,112.6,85.334,85.256,117.6]
[1645998643588,112.6,85.334,85.258,117.6]
[1645998643789,112.6,85.334,85.257,6.0]
[1645998643790,112.6,85.334,85.26,117.6]
[1645998643991,24.2967,85.359,85.262,117.6]
[1645998644190,24.2967,85.359,85.264,117.6]
[1645998644390,24.2967,85.359,85.266,117.6]
[1645998644589,24.2967,85.359,85.265,8.29510626]
[1645998644590,24.2967,85.359,85.268,117.6]
[1645998644790,112.6,85.366,85.27,117.6]
[1645998644989,112.6,85.366,85.272,117.6]
[1645998645190,112.6,85.366,85.274,117.6]
[1645998645391,112.6,85.366,85.276,117.6]
[1645998645392,19.86132113,85.365,85.276,117.6]
[1645998645750,19.86132113,85.365,85.279,2.94651455]
[1645998645899,19.86132113,85.365,85.281,117.6]
[1645998646190,18.36132113,85.365,85.284,2.35923466]
[1645998646390,18.36132113,85.365,85.287,2.89784832]
[1645998646592,112.6,85.366,85.29,2.86025834]
[1645998646793,112.6,85.366,85.293,2.52747868]
[1645998647092,18.36132113,85.365,85.294,6.0]
[1645998647498,4.687,85.364,85.294,6.0]
[1645998647694,18.36132113,85.365,85.294,6.0]
[1645998647894,13.19754763,85.374,85.294,6.0]
[1645998648095,13.19754763,85.374,85.295,22.5994]
[1645998648294,13.19754763,85.374,85.296,9.04530852]
[1645998648695,17.69344782,85.378,85.296,9.04530852]
[1645998649101,13.19754763,85.388,85.296,9.04530852]
[1645998649298,6.0,85.387,85.296,9.04530852]
[1645998649499,23.82344782,85.387,85.296,9.04530852]
[1645998649700,53.01804969,85.386,85.296,9.04530852]
[1645998649898,123.6,85.385,85.296,9.04530852]
[1645998650098,4.687,85.384,85.296,9.04530852]
[1645998650298,117.6,85.382,85.296,9.04530852]
[1645998650598,117.6,85.38,85.296,9.04530852]
[1645998650798,10.687,85.379,85.296,9.04530852]
[1645998650999,117.6,85.378,85.296,9.04530852]
[1645998651301,19.19754763,85.377,85.296,9.04530852]
[1645998651500,4.687,85.376,85.296,9.04530852]
[1645998651702,117.6,85.374,85.296,9.04530852]